[Event "Titled Tuesday Blitz October 12 2021"]
[White "Shipov, Sergei"]
[Black "Hansen, Eric"]
[WhiteFideId "4113624"]
[BlackFideId "2606771"]
[WhiteElo "2837"]
[BlackElo "2568"]
[Result "1-0"]
[Round "05"]
[TimeControl "180+1"]
[Date "2021.10.12"]
[WhiteClock "0:00:49"]
[BlackClock "0:00:04"]

1. d4 {[%clk 0:03:00]}  Nf6 {[%clk 0:02:58]} 2. c4 {[%clk 0:03:01]}  e6 {[%clk 0:02:56]} 3. Nc3 {[%clk 0:03:00]}  Bb4 {[%clk 0:02:54]} 4. Qc2 {[%clk 0:03:01]}  O-O {[%clk 0:02:53]} 5. a3 {[%clk 0:03:01]}  Bxc3+ {[%clk 0:02:47]} 6. Qxc3 {[%clk 0:03:01]}  d6 {[%clk 0:02:47]} 7. f3 {[%clk 0:02:54]}  c5 {[%clk 0:02:33]} 8. dxc5 {[%clk 0:02:54]}  dxc5 {[%clk 0:02:33]} 9. Bf4 {[%clk 0:02:52]}  Nc6 {[%clk 0:02:28]} 10. e3 {[%clk 0:02:52]}  Qe7 {[%clk 0:01:46]} 11. Ne2 {[%clk 0:02:44]}  e5 {[%clk 0:01:40]} 12. Bg5 {[%clk 0:02:44]}  Rd8 {[%clk 0:01:37]} 13. Ng3 {[%clk 0:02:36]}  h6 {[%clk 0:01:35]} 14. Bxf6 {[%clk 0:02:36]}  Qxf6 {[%clk 0:01:36]} 15. Bd3 {[%clk 0:02:29]}  Qg5 {[%clk 0:01:36]} 16. Kf2 {[%clk 0:02:27]}  Qh4 {[%clk 0:01:31]} 17. Be4 {[%clk 0:02:24]}  Bd7 {[%clk 0:01:24]} 18. Rhd1 {[%clk 0:02:22]}  Be8 {[%clk 0:01:20]} 19. Kg1 {[%clk 0:02:19]}  Qf6 {[%clk 0:01:14]} 20. Bd5 {[%clk 0:02:17]}  b6 {[%clk 0:01:12]} 21. b4 {[%clk 0:02:14]}  Rab8 {[%clk 0:00:57]} 22. bxc5 {[%clk 0:01:51]}  bxc5 {[%clk 0:00:57]} 23. Ne4 {[%clk 0:01:52]}  Qe7 {[%clk 0:00:56]} 24. Rab1 {[%clk 0:01:52]}  Rb6 {[%clk 0:00:50]} 25. Rb5 {[%clk 0:01:46]}  Nd4 {[%clk 0:00:45]} 26. exd4 {[%clk 0:01:38]}  exd4 {[%clk 0:00:37]} 27. Qb3 {[%clk 0:01:25]}  Bxb5 {[%clk 0:00:37]} 28. cxb5 {[%clk 0:01:25]}  a6 {[%clk 0:00:29]} 29. a4 {[%clk 0:01:24]}  axb5 {[%clk 0:00:30]} 30. axb5 {[%clk 0:01:24]}  Rdb8 {[%clk 0:00:24]} 31. Bc4 {[%clk 0:01:24]}  Kh8 {[%clk 0:00:24]} 32. Ra1 {[%clk 0:01:18]}  f5 {[%clk 0:00:23]} 33. Ng3 {[%clk 0:01:18]}  Qe5 {[%clk 0:00:20]} 34. Qd3 {[%clk 0:01:16]}  Rf8 {[%clk 0:00:19]} 35. Kf1 {[%clk 0:01:09]}  Rbf6 {[%clk 0:00:18]} 36. Re1 {[%clk 0:01:08]}  Qb8 {[%clk 0:00:18]} 37. Kf2 {[%clk 0:01:05]}  Qd6 {[%clk 0:00:15]} 38. Qe2 {[%clk 0:00:59]}  Qd8 {[%clk 0:00:10]} 39. Qe7 {[%clk 0:00:53]}  Qa5 {[%clk 0:00:02]} 40. Nh5 {[%clk 0:00:50]}  Qd2+ {[%clk 0:00:02]} 41. Re2 {[%clk 0:00:50]}  Qg5 {[%clk 0:00:03]} 42. Nxf6 {[%clk 0:00:49]}  Rxf6 {[%clk 0:00:03]} 43. Qe8+ {[%clk 0:00:49]}  Kh7 {[%clk 0:00:04]} 44. Bg8+ {[%clk 0:00:49]} 1-0


[Site "https://www.chess.com"]

[Event "Titled Tuesday Blitz October 12 2021"]
[White "Tabatabaei, M. Amin"]
[Black "Nguyen, Ngoc Truong Son"]
[WhiteFideId "12521213"]
[BlackFideId "12401110"]
[WhiteElo "2555"]
[BlackElo "2596"]
[Result "1-0"]
[Round "05"]
[TimeControl "180+1"]
[Date "2021.10.12"]
[WhiteClock "0:00:56"]
[BlackClock "0:00:04"]

1. b3 {[%clk 0:03:00]}  e5 {[%clk 0:02:56]} 2. Bb2 {[%clk 0:03:01]}  Nc6 {[%clk 0:02:53]} 3. e3 {[%clk 0:03:01]}  d6 {[%clk 0:02:49]} 4. Nf3 {[%clk 0:03:00]}  f5 {[%clk 0:02:44]} 5. c4 {[%clk 0:02:57]}  Nf6 {[%clk 0:02:42]} 6. Be2 {[%clk 0:02:55]}  g6 {[%clk 0:02:33]} 7. d4 {[%clk 0:02:54]}  e4 {[%clk 0:02:20]} 8. Nfd2 {[%clk 0:02:55]}  Bg7 {[%clk 0:02:20]} 9. Nc3 {[%clk 0:02:55]}  O-O {[%clk 0:02:11]} 10. a3 {[%clk 0:02:55]}  Ne7 {[%clk 0:02:06]} 11. d5 {[%clk 0:02:54]}  c6 {[%clk 0:02:04]} 12. dxc6 {[%clk 0:02:50]}  bxc6 {[%clk 0:02:05]} 13. b4 {[%clk 0:02:50]}  Be6 {[%clk 0:01:58]} 14. Nb3 {[%clk 0:02:50]}  d5 {[%clk 0:01:57]} 15. Nd4 {[%clk 0:02:48]}  Bf7 {[%clk 0:01:55]} 16. c5 {[%clk 0:02:49]}  Qc7 {[%clk 0:01:51]} 17. Qd2 {[%clk 0:02:34]}  a5 {[%clk 0:01:43]} 18. O-O {[%clk 0:02:16]}  Rab8 {[%clk 0:01:23]} 19. Na4 {[%clk 0:02:14]}  axb4 {[%clk 0:01:21]} 20. axb4 {[%clk 0:02:14]}  g5 {[%clk 0:00:56]} 21. b5 {[%clk 0:02:14]}  f4 {[%clk 0:00:48]} 22. b6 {[%clk 0:02:14]}  Qd7 {[%clk 0:00:47]} 23. exf4 {[%clk 0:02:14]}  gxf4 {[%clk 0:00:47]} 24. Qxf4 {[%clk 0:02:14]}  Nh5 {[%clk 0:00:18]} 25. Qd6 {[%clk 0:02:05]}  Qxd6 {[%clk 0:00:16]} 26. cxd6 {[%clk 0:02:06]}  Nc8 {[%clk 0:00:13]} 27. Bxh5 {[%clk 0:00:59]}  Bxh5 {[%clk 0:00:14]} 28. Ne6 {[%clk 0:00:59]}  Bxb2 {[%clk 0:00:14]} 29. Nxf8 {[%clk 0:01:00]}  Bxa1 {[%clk 0:00:14]} 30. Nd7 {[%clk 0:01:00]}  Rb7 {[%clk 0:00:12]} 31. Nac5 {[%clk 0:01:00]}  Rxd7 {[%clk 0:00:05]} 32. Nxd7 {[%clk 0:01:01]}  Nxd6 {[%clk 0:00:05]} 33. Rxa1 {[%clk 0:01:00]}  d4 {[%clk 0:00:04]} 34. Nc5 {[%clk 0:00:59]}  d3 {[%clk 0:00:04]} 35. Nxe4 {[%clk 0:00:56]} 1-0


[Site "https://www.chess.com"]

[Event "Titled Tuesday Blitz October 12 2021"]
[White "Terry, Renato"]
[Black "Babazada, Khazar"]
[WhiteFideId "3803457"]
[BlackFideId "13413554"]
[WhiteElo "2577"]
[BlackElo "2302"]
[Result "1-0"]
[Round "05"]
[TimeControl "180+1"]
[Date "2021.10.12"]
[WhiteClock "0:00:59"]
[BlackClock "0:01:43"]

1. e4 {[%clk 0:03:00]}  e5 {[%clk 0:02:59]} 2. Nf3 {[%clk 0:03:01]}  Nc6 {[%clk 0:02:59]} 3. c3 {[%clk 0:03:01]}  d6 {[%clk 0:02:56]} 4. d4 {[%clk 0:03:01]}  Bd7 {[%clk 0:02:55]} 5. Bc4 {[%clk 0:03:01]}  Be7 {[%clk 0:02:51]} 6. dxe5 {[%clk 0:02:24]}  dxe5 {[%clk 0:02:47]} 7. Qb3 {[%clk 0:02:07]}  Na5 {[%clk 0:02:36]} 8. Bxf7+ {[%clk 0:02:07]}  Kf8 {[%clk 0:02:36]} 9. Qd1 {[%clk 0:01:34]}  Kxf7 {[%clk 0:02:33]} 10. Nxe5+ {[%clk 0:01:35]}  Kf8 {[%clk 0:01:53]} 11. Nxd7+ {[%clk 0:01:21]}  Ke8 {[%clk 0:01:53]} 12. Ne5 {[%clk 0:00:59]}  Qxd1+ {[%clk 0:01:50]} 13. Kxd1 {[%clk 0:01:00]}  Nf6 {[%clk 0:01:51]} 14. f3 {[%clk 0:01:00]}  Bd6 {[%clk 0:01:46]} 15. Nd3 {[%clk 0:01:00]}  Rd8 {[%clk 0:01:43]} 16. Kc2 {[%clk 0:00:59]} 1-0


[Site "https://www.chess.com"]

[Event "Titled Tuesday Blitz October 12 2021"]
[White "Yilmaz, Mustafa"]
[Black "Nogerbek, Kazybek"]
[WhiteFideId "6302718"]
[BlackFideId "13710427"]
[WhiteElo "2518"]
[BlackElo "2436"]
[Result "1-0"]
[Round "05"]
[TimeControl "180+1"]
[Date "2021.10.12"]
[WhiteClock "0:00:29"]
[BlackClock "0:00:03"]

1. d4 {[%clk 0:03:00]}  Nf6 {[%clk 0:01:47]} 2. c4 {[%clk 0:02:59]}  e6 {[%clk 0:01:46]} 3. Nf3 {[%clk 0:02:59]}  d5 {[%clk 0:01:47]} 4. Nc3 {[%clk 0:02:58]}  Be7 {[%clk 0:01:46]} 5. Bf4 {[%clk 0:02:56]}  O-O {[%clk 0:01:45]} 6. e3 {[%clk 0:02:57]}  c5 {[%clk 0:01:46]} 7. dxc5 {[%clk 0:02:56]}  Bxc5 {[%clk 0:01:45]} 8. cxd5 {[%clk 0:02:56]}  Nxd5 {[%clk 0:01:45]} 9. Nxd5 {[%clk 0:02:57]}  exd5 {[%clk 0:01:45]} 10. Bd3 {[%clk 0:02:57]}  Bb4+ {[%clk 0:01:45]} 11. Nd2 {[%clk 0:02:57]}  Nc6 {[%clk 0:01:40]} 12. O-O {[%clk 0:02:56]}  Be7 {[%clk 0:01:38]} 13. a3 {[%clk 0:02:53]}  Bf6 {[%clk 0:01:37]} 14. Rc1 {[%clk 0:02:42]}  Be6 {[%clk 0:01:34]} 15. b4 {[%clk 0:02:38]}  Qb6 {[%clk 0:01:33]} 16. b5 {[%clk 0:02:32]}  Ne5 {[%clk 0:01:18]} 17. Bxe5 {[%clk 0:02:29]}  Bxe5 {[%clk 0:01:17]} 18. Bxh7+ {[%clk 0:02:26]}  Kxh7 {[%clk 0:01:18]} 19. Qh5+ {[%clk 0:02:26]}  Kg8 {[%clk 0:01:19]} 20. Qxe5 {[%clk 0:02:27]}  d4 {[%clk 0:01:19]} 21. Qxd4 {[%clk 0:02:15]}  Qxb5 {[%clk 0:01:15]} 22. Qa1 {[%clk 0:01:43]}  Rfd8 {[%clk 0:01:12]} 23. Nf3 {[%clk 0:01:43]}  Bd5 {[%clk 0:00:56]} 24. Nd4 {[%clk 0:01:42]}  Qd7 {[%clk 0:00:56]} 25. Rfd1 {[%clk 0:01:37]}  Rac8 {[%clk 0:00:47]} 26. h3 {[%clk 0:01:34]}  b6 {[%clk 0:00:38]} 27. Qb2 {[%clk 0:01:32]}  Bb7 {[%clk 0:00:35]} 28. Qe2 {[%clk 0:01:23]}  Rc5 {[%clk 0:00:30]} 29. Qg4 {[%clk 0:00:57]}  Qxg4 {[%clk 0:00:16]} 30. hxg4 {[%clk 0:00:57]}  g6 {[%clk 0:00:17]} 31. f3 {[%clk 0:00:50]}  Rdc8 {[%clk 0:00:15]} 32. Rxc5 {[%clk 0:00:50]}  Rxc5 {[%clk 0:00:16]} 33. Kf2 {[%clk 0:00:49]}  b5 {[%clk 0:00:15]} 34. Rb1 {[%clk 0:00:47]}  a6 {[%clk 0:00:15]} 35. a4 {[%clk 0:00:47]}  Bc8 {[%clk 0:00:06]} 36. axb5 {[%clk 0:00:47]}  axb5 {[%clk 0:00:07]} 37. Rxb5 {[%clk 0:00:47]}  Rc1 {[%clk 0:00:08]} 38. g5 {[%clk 0:00:43]}  Kg7 {[%clk 0:00:06]} 39. Rb6 {[%clk 0:00:41]}  Ra1 {[%clk 0:00:06]} 40. e4 {[%clk 0:00:39]}  Ra2+ {[%clk 0:00:06]} 41. Kg3 {[%clk 0:00:39]}  Ba6 {[%clk 0:00:07]} 42. Rb1 {[%clk 0:00:34]}  Rd2 {[%clk 0:00:06]} 43. Nc6 {[%clk 0:00:33]}  Rd6 {[%clk 0:00:05]} 44. Ne5 {[%clk 0:00:33]}  Re6 {[%clk 0:00:04]} 45. Kf4 {[%clk 0:00:33]}  Re7 {[%clk 0:00:05]} 46. Ng4 {[%clk 0:00:31]}  Bc8 {[%clk 0:00:05]} 47. Nf6 {[%clk 0:00:29]}  Rc7 {[%clk 0:00:03]} 48. Ne8+ {[%clk 0:00:29]} 1-0


[Site "https://www.chess.com"]

[Event "Titled Tuesday Blitz October 12 2021"]
[White "Zarnicki, Pablo"]
[Black "Obregon, Andres Carlos"]
[WhiteFideId "100137"]
[BlackFideId "111724"]
[WhiteElo "2467"]
[BlackElo "2572"]
[Result "1-0"]
[Round "05"]
[TimeControl "180+1"]
[Date "2021.10.12"]
[WhiteClock "0:00:11"]
[BlackClock "0:00:18"]

1. e4 {[%clk 0:03:00]}  e5 {[%clk 0:02:59]} 2. Nf3 {[%clk 0:03:00]}  Nc6 {[%clk 0:02:56]} 3. Nc3 {[%clk 0:03:01]}  Nf6 {[%clk 0:02:53]} 4. d4 {[%clk 0:03:01]}  exd4 {[%clk 0:02:50]} 5. Nxd4 {[%clk 0:03:00]}  Bb4 {[%clk 0:02:48]} 6. Nxc6 {[%clk 0:03:01]}  bxc6 {[%clk 0:02:44]} 7. Bd3 {[%clk 0:03:02]}  O-O {[%clk 0:02:41]} 8. O-O {[%clk 0:03:02]}  Re8 {[%clk 0:02:37]} 9. Bg5 {[%clk 0:03:01]}  h6 {[%clk 0:02:32]} 10. Bh4 {[%clk 0:03:01]}  Rb8 {[%clk 0:02:29]} 11. f4 {[%clk 0:02:50]}  Be7 {[%clk 0:02:22]} 12. e5 {[%clk 0:02:47]}  Nd5 {[%clk 0:02:20]} 13. Bxe7 {[%clk 0:02:44]}  Qxe7 {[%clk 0:02:17]} 14. Nxd5 {[%clk 0:02:38]}  cxd5 {[%clk 0:02:15]} 15. b3 {[%clk 0:02:27]}  d6 {[%clk 0:02:15]} 16. Qf3 {[%clk 0:02:25]}  dxe5 {[%clk 0:02:11]} 17. fxe5 {[%clk 0:02:25]}  Be6 {[%clk 0:02:09]} 18. Rae1 {[%clk 0:02:25]}  c5 {[%clk 0:02:04]} 19. Qg3 {[%clk 0:02:12]}  Rb4 {[%clk 0:01:47]} 20. h3 {[%clk 0:02:07]}  Qg5 {[%clk 0:01:36]} 21. Qxg5 {[%clk 0:01:55]}  hxg5 {[%clk 0:01:35]} 22. a3 {[%clk 0:01:56]}  Rb6 {[%clk 0:01:32]} 23. Re3 {[%clk 0:01:52]}  c4 {[%clk 0:01:27]} 24. bxc4 {[%clk 0:01:50]}  dxc4 {[%clk 0:01:27]} 25. Be2 {[%clk 0:01:46]}  Rb2 {[%clk 0:01:23]} 26. Rc3 {[%clk 0:01:43]}  Bd5 {[%clk 0:01:18]} 27. Bxc4 {[%clk 0:01:43]}  Bxc4 {[%clk 0:01:16]} 28. Rxc4 {[%clk 0:01:43]}  Rxe5 {[%clk 0:01:16]} 29. Rc8+ {[%clk 0:01:43]}  Kh7 {[%clk 0:01:15]} 30. Rxf7 {[%clk 0:01:43]}  Re2 {[%clk 0:01:10]} 31. Rcc7 {[%clk 0:01:36]}  a5 {[%clk 0:01:07]} 32. Rxg7+ {[%clk 0:01:35]}  Kh6 {[%clk 0:01:08]} 33. Rgd7 {[%clk 0:01:30]}  g4 {[%clk 0:00:58]} 34. hxg4 {[%clk 0:01:26]}  Rexc2 {[%clk 0:00:55]} 35. Rd6+ {[%clk 0:01:17]}  Kg5 {[%clk 0:00:54]} 36. Rd5+ {[%clk 0:00:49]}  Kxg4 {[%clk 0:00:52]} 37. Rxc2 {[%clk 0:00:36]}  Rxc2 {[%clk 0:00:53]} 38. Rxa5 {[%clk 0:00:36]}  Kg3 {[%clk 0:00:52]} 39. Rg5+ {[%clk 0:00:36]}  Kf4 {[%clk 0:00:52]} 40. Rh5 {[%clk 0:00:27]}  Ra2 {[%clk 0:00:50]} 41. Rh3 {[%clk 0:00:26]}  Kg4 {[%clk 0:00:47]} 42. Kh2 {[%clk 0:00:26]}  Ra1 {[%clk 0:00:43]} 43. Rb3 {[%clk 0:00:26]}  Ra2 {[%clk 0:00:43]} 44. Rb4+ {[%clk 0:00:25]}  Kg5 {[%clk 0:00:41]} 45. a4 {[%clk 0:00:26]}  Kh5 {[%clk 0:00:37]} 46. Kh3 {[%clk 0:00:25]}  Kg5 {[%clk 0:00:36]} 47. g3 {[%clk 0:00:25]}  Ra1 {[%clk 0:00:36]} 48. Rb5+ {[%clk 0:00:25]}  Kg6 {[%clk 0:00:36]} 49. a5 {[%clk 0:00:26]}  Ra4 {[%clk 0:00:35]} 50. g4 {[%clk 0:00:16]}  Ra1 {[%clk 0:00:35]} 51. Rb6+ {[%clk 0:00:12]}  Kg5 {[%clk 0:00:35]} 52. Rb5+ {[%clk 0:00:13]}  Kf4 {[%clk 0:00:33]} 53. Rf5+ {[%clk 0:00:12]}  Ke4 {[%clk 0:00:32]} 54. Kh4 {[%clk 0:00:12]}  Ra2 {[%clk 0:00:27]} 55. Kg5 {[%clk 0:00:13]}  Ra1 {[%clk 0:00:28]} 56. Kg6 {[%clk 0:00:11]}  Rc1 {[%clk 0:00:26]} 57. g5 {[%clk 0:00:11]}  Rc8 {[%clk 0:00:26]} 58. Rf6 {[%clk 0:00:10]}  Rg8+ {[%clk 0:00:24]} 59. Kh6 {[%clk 0:00:10]}  Ke5 {[%clk 0:00:25]} 60. Rf1 {[%clk 0:00:09]}  Rh8+ {[%clk 0:00:22]} 61. Kg7 {[%clk 0:00:09]}  Ra8 {[%clk 0:00:23]} 62. g6 {[%clk 0:00:08]}  Ke6 {[%clk 0:00:22]} 63. a6 {[%clk 0:00:07]}  Ra7+ {[%clk 0:00:18]} 64. Kh8 {[%clk 0:00:07]}  Ra8+ {[%clk 0:00:17]} 65. Kh7 {[%clk 0:00:06]}  Rxa6 {[%clk 0:00:15]} 66. g7 {[%clk 0:00:07]}  Ra7 {[%clk 0:00:16]} 67. Kh8 {[%clk 0:00:07]}  Ra8+ {[%clk 0:00:16]} 68. g8=Q+ {[%clk 0:00:07]}  Rxg8+ {[%clk 0:00:16]} 69. Kxg8 {[%clk 0:00:08]}  Ke5 {[%clk 0:00:16]} 70. Kg7 {[%clk 0:00:08]}  Ke6 {[%clk 0:00:16]} 71. Kg6 {[%clk 0:00:09]}  Ke5 {[%clk 0:00:16]} 72. Kg5 {[%clk 0:00:10]}  Ke4 {[%clk 0:00:17]} 73. Rf4+ {[%clk 0:00:10]}  Ke3 {[%clk 0:00:17]} 74. Kf5 {[%clk 0:00:10]}  Kd3 {[%clk 0:00:17]} 75. Re4 {[%clk 0:00:11]}  Kd2 {[%clk 0:00:17]} 76. Ke5 {[%clk 0:00:12]}  Kd3 {[%clk 0:00:17]} 77. Kd5 {[%clk 0:00:12]}  Kc3 {[%clk 0:00:17]} 78. Rd4 {[%clk 0:00:12]}  Kc2 {[%clk 0:00:18]} 79. Kc5 {[%clk 0:00:12]}  Kc3 {[%clk 0:00:18]} 80. Rd5 {[%clk 0:00:12]}  Kc2 {[%clk 0:00:18]} 81. Kc4 {[%clk 0:00:11]}  Kb2 {[%clk 0:00:18]} 82. Rd2+ {[%clk 0:00:11]}  Kc1 {[%clk 0:00:18]} 83. Kc3 {[%clk 0:00:11]} 1-0


[Site "https://www.chess.com"]

[Event "Titled Tuesday Blitz October 12 2021"]
[White "Hansen, Eric"]
[Black "Macovei, Andrei"]
[WhiteFideId "2606771"]
[BlackFideId "13904680"]
[WhiteElo "2568"]
[BlackElo "2389"]
[Result "1-0"]
[Round "06"]
[TimeControl "180+1"]
[Date "2021.10.12"]
[WhiteClock "0:00:17"]
[BlackClock "0:00:11"]

1. Nf3 {[%clk 0:03:00]}  Nf6 {[%clk 0:02:58]} 2. g3 {[%clk 0:02:59]}  g6 {[%clk 0:02:54]} 3. Bg2 {[%clk 0:02:59]}  Bg7 {[%clk 0:02:55]} 4. O-O {[%clk 0:03:00]}  O-O {[%clk 0:02:55]} 5. c4 {[%clk 0:03:00]}  d6 {[%clk 0:02:52]} 6. Nc3 {[%clk 0:02:57]}  Nbd7 {[%clk 0:02:51]} 7. d4 {[%clk 0:02:55]}  e5 {[%clk 0:02:51]} 8. dxe5 {[%clk 0:02:49]}  dxe5 {[%clk 0:02:52]} 9. Nd2 {[%clk 0:02:45]}  Qe7 {[%clk 0:02:39]} 10. Nd5 {[%clk 0:02:40]}  Nxd5 {[%clk 0:02:37]} 11. cxd5 {[%clk 0:02:41]}  Nb6 {[%clk 0:02:31]} 12. a4 {[%clk 0:02:40]}  Rd8 {[%clk 0:02:30]} 13. e4 {[%clk 0:02:39]}  c6 {[%clk 0:02:00]} 14. a5 {[%clk 0:02:37]}  Nd7 {[%clk 0:02:01]} 15. Nc4 {[%clk 0:02:27]}  Nf6 {[%clk 0:01:39]} 16. b3 {[%clk 0:01:48]}  cxd5 {[%clk 0:01:31]} 17. Ba3 {[%clk 0:01:40]}  Qe8 {[%clk 0:01:27]} 18. exd5 {[%clk 0:01:37]}  Bg4 {[%clk 0:01:27]} 19. Qd2 {[%clk 0:01:09]}  e4 {[%clk 0:01:27]} 20. d6 {[%clk 0:01:07]}  Qe6 {[%clk 0:01:24]} 21. Rfe1 {[%clk 0:01:04]}  Qf5 {[%clk 0:01:08]} 22. Bb2 {[%clk 0:00:57]}  Bf3 {[%clk 0:01:01]} 23. Bf1 {[%clk 0:00:44]}  Rac8 {[%clk 0:00:57]} 24. Bd4 {[%clk 0:00:41]}  Ng4 {[%clk 0:00:45]} 25. h3 {[%clk 0:00:36]}  Ne5 {[%clk 0:00:39]} 26. Bxe5 {[%clk 0:00:19]}  Bxe5 {[%clk 0:00:40]} 27. Ra4 {[%clk 0:00:18]}  Rc6 {[%clk 0:00:31]} 28. Qe3 {[%clk 0:00:17]}  b5 {[%clk 0:00:24]} 29. axb6 {[%clk 0:00:17]}  axb6 {[%clk 0:00:25]} 30. Nxe5 {[%clk 0:00:18]}  Qxe5 {[%clk 0:00:23]} 31. Qxf3 {[%clk 0:00:18]}  f5 {[%clk 0:00:20]} 32. Qe3 {[%clk 0:00:17]}  Rcxd6 {[%clk 0:00:20]} 33. Rc4 {[%clk 0:00:18]}  Kg7 {[%clk 0:00:20]} 34. Rc7+ {[%clk 0:00:18]}  R6d7 {[%clk 0:00:20]} 35. Rxd7+ {[%clk 0:00:18]}  Rxd7 {[%clk 0:00:21]} 36. Qxb6 {[%clk 0:00:18]}  f4 {[%clk 0:00:20]} 37. gxf4 {[%clk 0:00:17]}  Qxf4 {[%clk 0:00:21]} 38. Qe3 {[%clk 0:00:18]}  Qb8 {[%clk 0:00:18]} 39. Bc4 {[%clk 0:00:16]}  Re7 {[%clk 0:00:17]} 40. Qd4+ {[%clk 0:00:17]}  Kh6 {[%clk 0:00:18]} 41. Rxe4 {[%clk 0:00:17]}  Rxe4 {[%clk 0:00:17]} 42. Qxe4 {[%clk 0:00:18]}  Qd8 {[%clk 0:00:17]} 43. h4 {[%clk 0:00:18]}  Qd1+ {[%clk 0:00:16]} 44. Kg2 {[%clk 0:00:18]}  Qd8 {[%clk 0:00:16]} 45. Qf4+ {[%clk 0:00:18]}  Kg7 {[%clk 0:00:17]} 46. Qe5+ {[%clk 0:00:19]}  Kh6 {[%clk 0:00:17]} 47. Kg3 {[%clk 0:00:19]}  Qc8 {[%clk 0:00:15]} 48. Qf4+ {[%clk 0:00:19]}  Kg7 {[%clk 0:00:15]} 49. Qe5+ {[%clk 0:00:18]}  Kh6 {[%clk 0:00:15]} 50. f3 {[%clk 0:00:18]}  Qa8 {[%clk 0:00:15]} 51. Bd5 {[%clk 0:00:17]}  Qa3 {[%clk 0:00:14]} 52. Qf4+ {[%clk 0:00:18]}  Kg7 {[%clk 0:00:14]} 53. Qf7+ {[%clk 0:00:17]}  Kh8 {[%clk 0:00:11]} 54. Qg8# {[%clk 0:00:17]} 1-0


[Site "https://www.chess.com"]

[Event "Titled Tuesday Blitz October 12 2021"]
[White "Kamsky, Gata"]
[Black "Ozen, Bahadir"]
[WhiteFideId "2000024"]
[BlackFideId "6337058"]
[WhiteElo "2603"]
[BlackElo "2503"]
[Result "1/2-1/2"]
[Round "06"]
[TimeControl "180+1"]
[Date "2021.10.12"]
[WhiteClock "0:00:16"]
[BlackClock "0:00:08"]

1. e4 {[%clk 0:03:00]}  c6 {[%clk 0:02:59]} 2. d4 {[%clk 0:02:59]}  d5 {[%clk 0:03:00]} 3. exd5 {[%clk 0:02:59]}  cxd5 {[%clk 0:02:59]} 4. Bd3 {[%clk 0:03:00]}  Nc6 {[%clk 0:02:59]} 5. c3 {[%clk 0:03:00]}  Nf6 {[%clk 0:02:58]} 6. Bf4 {[%clk 0:02:59]}  Bg4 {[%clk 0:02:57]} 7. Qb3 {[%clk 0:02:56]}  Qd7 {[%clk 0:02:57]} 8. Nd2 {[%clk 0:02:55]}  e6 {[%clk 0:02:56]} 9. Ngf3 {[%clk 0:02:54]}  Bd6 {[%clk 0:02:56]} 10. Bg5 {[%clk 0:02:48]}  O-O {[%clk 0:02:44]} 11. O-O {[%clk 0:02:46]}  Bh5 {[%clk 0:02:18]} 12. Rfe1 {[%clk 0:02:43]}  Qc7 {[%clk 0:02:18]} 13. Bh4 {[%clk 0:02:37]}  Bg6 {[%clk 0:02:12]} 14. Bxg6 {[%clk 0:02:36]}  hxg6 {[%clk 0:02:13]} 15. Bg3 {[%clk 0:02:37]}  Nd7 {[%clk 0:01:58]} 16. a4 {[%clk 0:02:33]}  Rab8 {[%clk 0:01:56]} 17. Qc2 {[%clk 0:02:24]}  b5 {[%clk 0:01:48]} 18. axb5 {[%clk 0:02:22]}  Rxb5 {[%clk 0:01:49]} 19. Bxd6 {[%clk 0:01:58]}  Qxd6 {[%clk 0:01:49]} 20. h4 {[%clk 0:01:52]}  Rfb8 {[%clk 0:01:45]} 21. b3 {[%clk 0:01:51]}  Rc8 {[%clk 0:01:45]} 22. Qd3 {[%clk 0:01:51]}  Rb7 {[%clk 0:01:41]} 23. Ng5 {[%clk 0:01:46]}  Nf6 {[%clk 0:01:17]} 24. b4 {[%clk 0:01:31]}  e5 {[%clk 0:01:09]} 25. Qg3 {[%clk 0:01:27]}  Nh5 {[%clk 0:01:04]} 26. dxe5 {[%clk 0:01:25]}  Nxg3 {[%clk 0:00:54]} 27. exd6 {[%clk 0:01:25]}  Nf5 {[%clk 0:00:55]} 28. b5 {[%clk 0:01:25]}  Nb8 {[%clk 0:00:52]} 29. c4 {[%clk 0:01:14]}  f6 {[%clk 0:00:36]} 30. Ngf3 {[%clk 0:01:06]}  dxc4 {[%clk 0:00:36]} 31. Ne4 {[%clk 0:01:00]}  Rd7 {[%clk 0:00:27]} 32. Red1 {[%clk 0:00:46]}  Rcd8 {[%clk 0:00:26]} 33. Ra4 {[%clk 0:00:42]}  Nxd6 {[%clk 0:00:25]} 34. Nxd6 {[%clk 0:00:39]}  Rxd6 {[%clk 0:00:26]} 35. Rxd6 {[%clk 0:00:39]}  Rxd6 {[%clk 0:00:27]} 36. Rxc4 {[%clk 0:00:36]}  Rb6 {[%clk 0:00:26]} 37. Rc8+ {[%clk 0:00:34]}  Kh7 {[%clk 0:00:25]} 38. Nd4 {[%clk 0:00:34]}  a6 {[%clk 0:00:25]} 39. bxa6 {[%clk 0:00:26]}  Nxa6 {[%clk 0:00:26]} 40. g3 {[%clk 0:00:24]}  Nb4 {[%clk 0:00:26]} 41. Re8 {[%clk 0:00:23]}  Nc6 {[%clk 0:00:19]} 42. Ne6 {[%clk 0:00:22]}  Rb8 {[%clk 0:00:18]} 43. Nf8+ {[%clk 0:00:20]}  Kh6 {[%clk 0:00:15]} 44. Rxb8 {[%clk 0:00:19]}  Nxb8 {[%clk 0:00:16]} 45. g4 {[%clk 0:00:19]}  g5 {[%clk 0:00:06]} 46. h5 {[%clk 0:00:19]}  Nc6 {[%clk 0:00:07]} 47. Kg2 {[%clk 0:00:18]}  Ne5 {[%clk 0:00:07]} 48. Kg3 {[%clk 0:00:18]}  g6 {[%clk 0:00:05]} 49. hxg6 {[%clk 0:00:18]}  Kg7 {[%clk 0:00:05]} 50. Ne6+ {[%clk 0:00:17]}  Kxg6 {[%clk 0:00:06]} 51. f4 {[%clk 0:00:17]}  gxf4+ {[%clk 0:00:07]} 52. Kxf4 {[%clk 0:00:17]}  Nd3+ {[%clk 0:00:07]} 53. Ke4 {[%clk 0:00:16]}  Nf2+ {[%clk 0:00:06]} 54. Kf3 {[%clk 0:00:17]}  Nxg4 {[%clk 0:00:07]} 55. Kxg4 {[%clk 0:00:16]}  f5+ {[%clk 0:00:07]} 56. Kf4 {[%clk 0:00:16]}  Kh6 {[%clk 0:00:08]} 57. Kxf5 {[%clk 0:00:16]} 1/2-1/2


[Site "https://www.chess.com"]